fUSD/lending_fUSD_20240109
["ID","MTS","AMOUNT","RATE_DAILY","PERIOD"]
[310964674,1704836003775,-500.0,0.00041589,30]
[310964675,1704836003786,-550.03,0.00041589,30]
[310964676,1704836003796,-341.78232792,0.00041589,30]
[310964677,1704836003806,-12867.13,0.00041589,30]
[310964678,1704836003816,-897.67,0.00041589,30]
[310964679,1704836003826,-176.67676402,0.00041589,30]
[310964680,1704836003835,-864.6,0.00041589,30]
[310964681,1704836003845,-550.26,0.00041589,30]
[310964682,1704836003855,-1997.12,0.00041589,30]
[310964683,1704836003865,-1195.83,0.00041589,30]
[310964684,1704836003875,-500.0,0.00041589,30]
[310964685,1704836003884,-998.19,0.00041589,30]
[310964686,1704836003894,-500.0,0.00041589,30]
[310964687,1704836003903,-500.0,0.00041589,30]
[310964688,1704836003912,-500.0,0.00041589,30]
[310964689,1704836003926,-48899.91,0.00041589,30]
[310964690,1704836003936,-508.17435694,0.00041589,30]
[310964691,1704836003946,-500.0,0.00041589,30]
[310964692,1704836003956,-654.66,0.00041589,30]
[310964693,1704836003967,-500.0,0.00041589,30]
[310964694,1704836003977,-2469.86,0.00041589,30]
[310964695,1704836003988,-767.91,0.00041589,30]
[310964696,1704836003999,-808.31,0.00041589,30]
[310964697,1704836004010,-673.33,0.00041589,30]
[310964698,1704836004021,-500.0,0.00041589,30]
[310964699,1704836004031,-500.0,0.00041589,30]
[310964700,1704836004041,-2521.48,0.00041589,30]
[310964701,1704836004051,-2801.21,0.00041589,30]
[310964702,1704836004061,-626.68,0.00041589,30]
[310964703,1704836004071,-886.46,0.00041589,30]
[310964704,1704836004080,-1955.03,0.00041589,30]
[310964705,1704836004090,-2192.68,0.00041589,30]
[310964706,1704836004101,-500.0,0.00041589,30]
[310964707,1704836004110,-991.57,0.00041589,30]
[310964708,1704836004120,-1009.87,0.00041589,7]
[310964709,1704836004129,-500.0,0.00041589,30]
[310964710,1704836004139,-500.0,0.00041589,30]
[310964711,1704836004149,-500.0,0.00041589,30]
[310964712,1704836004159,-828.51,0.00041589,30]
[310964713,1704836004172,-500.0,0.00041589,30]
[310964714,1704836004184,-2108.88,0.00041589,30]
[310964715,1704836004194,-1931.34,0.00041589,30]
[310964716,1704836004204,-3347.6,0.00041589,30]
[310964717,1704836004214,-14790.64,0.00041589,30]
[310964718,1704836004224,-500.0,0.00041589,7]
[310964719,1704836004234,-500.0,0.00041589,30]
[310964720,1704836004244,-822.65,0.00041589,30]
[310964721,1704836004254,-500.0,0.00041589,30]
[310964722,1704836004264,-500.0,0.00041589,30]
[310964723,1704836004274,-1430.23,0.00041589,30]
[310964724,1704836004283,-5678.13,0.00041589,30]
[310964725,1704836004293,-610.39,0.00041589,30]
[310964726,1704836004304,-1617.86,0.00041589,30]
[310964727,1704836004315,-1087.77,0.00041589,30]
[310964728,1704836004325,-2799.84,0.00041589,30]
[310964729,1704836004335,-733.18,0.00041589,30]
[310964730,1704836004345,-500.0,0.00041589,30]
[310964731,1704836004355,-2846.34,0.00041589,30]
[310964732,1704836004367,-500.0,0.00041589,30]
[310964733,1704836004377,-796.49,0.00041589,30]
[310964734,1704836004387,-500.0,0.00041589,30]
[310964735,1704836004397,-500.0,0.00041589,30]
[310964736,1704836004407,-1593.04,0.00041589,30]
[310964737,1704836004417,-500.0,0.00041589,30]
[310964738,1704836004432,-500.0,0.00041589,30]
[310964739,1704836004442,-1520.5,0.00041589,30]
[310964740,1704836004452,-502.92,0.00041589,30]
[310964741,1704836004462,-1804.05,0.00041589,30]
[310964742,1704836004472,-539.66,0.00041589,30]
[310964743,1704836004481,-857.84,0.00041589,30]
[310964744,1704836004491,-569.29086852,0.00041589,30]
[310964745,1704836004501,-1689.37,0.00041589,30]
[310964746,1704836004510,-1039.06,0.00041589,30]
[310964747,1704836004520,-4621.51,0.00041589,30]
[310964748,1704836004529,-500.0,0.00041589,30]
[310964749,1704836004539,-704.14,0.00041589,30]
[310964750,1704836004549,-1420.75,0.00041589,30]
[310964751,1704836004559,-500.0,0.00041589,30]
[310964752,1704836004569,-4643.53,0.00041589,30]
[310964753,1704836004579,-500.0,0.00041589,30]
[310964754,1704836004589,-571.44,0.00041589,30]
[310964755,1704836004598,-3385.64,0.00041589,30]
[310964756,1704836004608,-500.0,0.00041589,30]
[310964757,1704836004618,-500.0,0.00041589,30]
[310964758,1704836004628,-500.0,0.00041589,30]
[310964759,1704836004638,-500.0,0.00041589,30]
[310964760,1704836004648,-2540.83,0.00041589,30]
[310964761,1704836004657,-965.39,0.00041589,30]
[310964762,1704836004667,-500.0,0.00041589,30]
[310964763,1704836004679,-2213.16,0.00041589,30]
[310964764,1704836004689,-791.0,0.00041589,30]
[310964765,1704836004699,-500.0,0.00041589,30]
[310964766,1704836004708,-846.61,0.00041589,30]
[310964767,1704836004719,-2650.5,0.00041589,30]
[310964768,1704836004728,-786.95,0.00041589,30]
[310964769,1704836004739,-500.0,0.00041589,30]
[310964770,1704836004749,-500.0,0.00041589,30]
[310964771,1704836004758,-500.0,0.00041589,30]
[310964772,1704836004769,-1349.94,0.00041589,30]
[310964773,1704836004779,-832.69,0.00041589,30]
[310964774,1704836004788,-2311.91,0.00041589,30]
[310964775,1704836004798,-1396.93,0.00041589,30]
[310964776,1704836004810,-500.0,0.00041589,30]
[310964777,1704836004820,-14690.46,0.00041589,30]
[310964778,1704836004831,-500.0,0.00041589,30]
[310964779,1704836004841,-2102.03,0.00041589,30]
[310964780,1704836004851,-500.0,0.00041589,30]
[310964781,1704836004860,-500.0,0.00041589,30]
[310964782,1704836004870,-6568.56,0.00041589,30]
[310964783,1704836004879,-3431.96,0.00041589,30]
[310964784,1704836004888,-2567.2,0.00041589,30]
[310964785,1704836004898,-534.6,0.00041589,30]
[310964786,1704836004908,-500.0,0.00041589,30]
[310964787,1704836004918,-4057.32,0.00041589,30]
[310964788,1704836004933,-1036.03,0.00041589,30]
[310964789,1704836004944,-5465.29,0.00041589,30]
[310964790,1704836004954,-1046.98,0.00041589,30]
[310964791,1704836004964,-707.65,0.00041589,30]
[310964792,1704836004974,-558.03,0.00041589,30]
[310964793,1704836004984,-503.66,0.00041589,30]
[310964794,1704836004994,-3677.68,0.00041589,30]
[310964795,1704836005004,-500.0,0.00041589,30]
[310964796,1704836005014,-500.0,0.00041589,30]
[310964797,1704836005024,-2255.93,0.00041589,30]
[310964798,1704836005035,-2496.21,0.00041589,30]
[310964799,1704836005045,-2311.14,0.00041589,30]
[310964800,1704836005055,-3376.56,0.00041589,30]
[310964801,1704836005065,-692.76,0.00041589,30]
[310964802,1704836005075,-1358.66,0.00041589,30]
[310964803,1704836005086,-769.11,0.00041589,30]
[310964804,1704836005096,-500.0,0.00041589,30]
[310964805,1704836005106,-260.35,0.00041589,30]
[310964806,1704836005116,-1845.73,0.00041589,30]
[310964807,1704836005126,-13108.96,0.00041589,30]
[310964808,1704836005135,-500.0,0.00041589,30]
[310964809,1704836005145,-500.0,0.00041589,30]
[310964810,1704836005154,-9899.51,0.00041589,30]
[310964811,1704836005164,-1387.57,0.00041589,30]
[310964812,1704836005180,-10579.54,0.00041589,30]
[310964813,1704836005194,-1436.88,0.00041589,30]
[310964814,1704836005204,-1868.59,0.00041589,30]
[310964815,1704836005214,-500.0,0.00041589,30]
[310964816,1704836005224,-1636.08,0.00041589,30]
[310964817,1704836005234,-780.53,0.00041589,30]
[310964818,1704836005243,-583.25,0.00041589,30]
[310964819,1704836005253,-7300.87,0.00041589,30]
[310964820,1704836005262,-500.0,0.00041589,30]
[310964821,1704836005272,-1200.98,0.00041589,30]
[310964822,1704836005284,-2024.47,0.00041589,30]
[310964823,1704836005294,-1010.7,0.00041589,30]
[310964824,1704836005304,-500.0,0.00041589,30]
[310964825,1704836005314,-1279.36,0.00041589,30]
[310964826,1704836005324,-829.24,0.00041589,30]
[310964827,1704836005334,-663.65,0.00041589,30]
[310964828,1704836005344,-1022.82,0.00041589,30]
[310964829,1704836005354,-500.0,0.00041589,30]
[310964830,1704836005366,-1276.96,0.00041589,30]
[310964831,1704836005376,-719.05,0.00041589,30]
[310964832,1704836005387,-5923.58,0.00041589,30]
[310964833,1704836005400,-1955.18,0.00041589,30]
[310964834,1704836005410,-500.0,0.00041589,30]
[310964835,1704836005422,-1076.29,0.00041589,30]
[310964836,1704836005433,-3773.23,0.00041589,30]
[310964837,1704836005442,-1442.56,0.00041589,30]
[310964838,1704836005452,-3976.14,0.00041589,30]
[310964839,1704836005462,-500.0,0.00041589,30]
[310964840,1704836005472,-2969.33,0.00041589,30]
[310964841,1704836005483,-1085.14,0.00041589,30]
[310964842,1704836005493,-546.98,0.00041589,30]
[310964843,1704836005503,-1958.44,0.00041589,30]
[310964844,1704836005513,-500.0,0.00041589,30]
[310964845,1704836005522,-500.0,0.00041589,30]
[310964846,1704836005533,-6261.12,0.00041589,30]
[310964847,1704836005542,-500.0,0.00041589,30]
[310964848,1704836005552,-645.66,0.00041589,30]
[310964849,1704836005688,-1066.92,0.00041589,30]
[310964850,1704836005698,-1757.07,0.00041589,30]
[310964851,1704836005707,-894.85,0.00041589,30]
[310964852,1704836005716,-2874.62,0.00041589,30]
[310964853,1704836005725,-3862.71,0.00041589,30]
[310964854,1704836005735,-4543.27,0.00041589,30]
[310964855,1704836005744,-500.0,0.00041589,30]
[310964856,1704836005753,-1341.14,0.00041589,30]
[310964857,1704836005762,-577.82,0.00041589,30]
[310964858,1704836005772,-500.0,0.00041589,30]
[310964859,1704836005781,-901.82,0.00041589,30]
[310964860,1704836005791,-500.0,0.00041589,30]
[310964861,1704836005800,-500.0,0.00041589,30]
[310964862,1704836005809,-3856.08,0.00041589,30]
[310964863,1704836005819,-1349.44,0.00041589,30]
[310964864,1704836005828,-500.0,0.00041589,30]
[310964865,1704836005838,-1130.33,0.00041589,30]
[310964866,1704836005848,-588.78,0.00041589,30]
[310964867,1704836005857,-1641.57,0.00041589,30]
[310964868,1704836005867,-1586.06,0.00041589,30]
[310964869,1704836005877,-760.68,0.00041589,30]
[310964870,1704836005886,-857.88,0.00041589,30]
[310964871,1704836005896,-3762.07,0.00041589,30]
[310964872,1704836005907,-500.0,0.00041589,30]
[310964873,1704836005917,-536.72,0.00041589,30]
[310964874,1704836005931,-550.1,0.00041589,30]
[310964875,1704836005940,-500.0,0.00041589,30]
[310964876,1704836005949,-4420.44,0.00041589,30]
[310964877,1704836005958,-4355.86,0.00041589,30]
[310964878,1704836005968,-1511.36,0.00041589,30]
[310964879,1704836005977,-500.0,0.00041589,30]
[310964880,1704836005986,-1161.02,0.00041589,30]
[310964881,1704836005995,-10725.89,0.00041589,30]
[310964882,1704836006005,-1044.46,0.00041589,30]
[310964883,1704836006015,-500.0,0.00041589,30]
[310964884,1704836006024,-929.83,0.00041589,30]
[310964885,1704836006033,-867.5,0.00041589,30]
[310964886,1704836006042,-720.34,0.00041589,30]
[310964887,1704836006051,-6977.93,0.00041589,30]
[310964888,1704836006061,-500.0,0.00041589,30]
[310964889,1704836006071,-964.23,0.00041589,30]
[310964890,1704836006080,-500.0,0.00041589,30]
[310964891,1704836006090,-3056.94,0.00041589,30]
[310964892,1704836006099,-1586.56,0.00041589,30]
[310964893,1704836006108,-500.0,0.00041589,30]
[310964894,1704836006118,-500.0,0.00041589,7]
[310964895,1704836006127,-500.0,0.00041589,30]
[310964896,1704836006137,-1370.1,0.00041589,30]
[310964897,1704836006147,-3469.89,0.00041589,30]
[310964898,1704836006156,-500.0,0.00041589,30]
[310964899,1704836006166,-648.93,0.00041589,30]
[310964900,1704836006178,-994.23,0.00041589,30]
[310964901,1704836006188,-500.0,0.00041589,30]
[310964902,1704836006198,-521.20762028,0.00041589,30]
[310964903,1704836006207,-585.74823297,0.00041589,30]
[310964904,1704836006217,-500.0,0.00041589,30]
[310964905,1704836006228,-500.0,0.00041589,30]
[310964906,1704836006237,-3974.35,0.00041589,30]
[310964907,1704836006246,-575.24,0.00041589,30]
[310964908,1704836006256,-1208.62,0.00041589,30]
[310964909,1704836006266,-500.0,0.00041589,30]
[310964910,1704836006275,-500.0,0.00041589,30]
[310964911,1704836006285,-500.0,0.00041589,30]
[310964912,1704836006295,-500.0,0.00041589,30]
[310964913,1704836006304,-840.42,0.00041589,30]
[310964914,1704836006314,-442.62,0.00041589,30]
[310964915,1704836006323,-500.0,0.00041589,30]
[310964916,1704836006333,-20052.88,0.00041589,30]
[310964917,1704836006342,-500.0,0.00041589,30]
[310964918,1704836006352,-1154.2,0.00041589,30]
[310964919,1704836006363,-500.0,0.00041589,30]
[310964920,1704836006372,-3280.13,0.00041589,30]
[310964921,1704836006383,-1336.18,0.00041589,30]
[310964922,1704836006393,-3059.66,0.00041589,30]
[310964923,1704836006403,-500.0,0.00041589,30]
[310964924,1704836006413,-808.78,0.00041589,30]
[310964925,1704836006426,-5796.52,0.00041589,30]
[310964926,1704836006435,-595.48,0.00041589,30]
[310964927,1704836006445,-772.79,0.00041589,30]
[310964928,1704836006455,-1773.57,0.00041589,30]
[310964929,1704836006464,-500.0,0.00041589,30]
[310964930,1704836006475,-1436.73,0.00041589,30]
[310964931,1704836006484,-1274.83,0.00041589,30]
[310964932,1704836006494,-500.0,0.00041589,30]
[310964933,1704836006505,-823.79,0.00041589,30]
[310964934,1704836006514,-500.0,0.00041589,30]
[310964935,1704836006524,-767.78,0.00041589,30]
[310964936,1704836006534,-500.0,0.00041589,30]
[310964937,1704836006543,-500.0,0.00041589,30]
[310964938,1704836006554,-1944.68,0.00041589,30]
[310964939,1704836006564,-1764.13,0.00041589,30]
[310964940,1704836006574,-924.78,0.00041589,30]
[310964941,1704836006583,-10402.25,0.00041589,30]
[310964942,1704836006593,-500.0,0.00041589,30]
[310964943,1704836006602,-500.0,0.00041589,30]
[310964944,1704836006613,-4303.2,0.00041589,30]
[310964945,1704836006622,-4288.57,0.00041589,30]
[310964946,1704836006632,-7059.7,0.00041589,30]
[310964947,1704836006641,-6327.7,0.00041589,30]
[310964948,1704836006650,-1629.67,0.00041589,30]
[310964949,1704836006660,-2082.36,0.00041589,30]
[310964950,1704836006669,-699.1,0.00041589,30]
[310964951,1704836006682,-500.0,0.00041589,30]
[310964952,1704836006691,-737.62,0.00041589,30]
[310964953,1704836006701,-961.05,0.00041589,30]
[310964954,1704836006710,-8750.0,0.000416,5]
[310964955,1704836006719,-1248.33,0.00041643,38]
[310964956,1704836006728,-3000.0,0.00041643,120]
[310964957,1704836006738,-3584.51,0.00041643,30]
[310964958,1704836006747,-3584.51,0.00041643,30]
[310964959,1704836006757,-3584.51,0.00041643,30]
[310964960,1704836006767,-3584.51,0.00041643,30]
[310964961,1704836006777,-3584.51,0.00041643,30]
[310964962,1704836006786,-3584.51,0.00041643,30]
[310964963,1704836006796,-3584.51,0.00041643,30]
[310964964,1704836006806,-8750.0,0.0004165,5]
[310964965,1704836006815,-151.0,0.00041671,14]
[310964966,1704836006825,-190.450912,0.00041671,14]
[310964967,1704836006835,-190.450912,0.00041671,14]
[310964968,1704836006844,-547.78,0.00041671,30]
[310964969,1704836006853,-500.0,0.00041671,30]
[310964970,1704836006862,-500.0,0.00041671,30]
[310964971,1704836006872,-500.0,0.00041671,30]
[310964972,1704836006881,-500.0,0.00041671,30]
[310964973,1704836006891,-519.07,0.00041671,30]
[310964974,1704836006900,-500.0,0.00041671,30]
[310964975,1704836006909,-500.0,0.00041671,30]
[310964976,1704836006918,-500.0,0.00041671,30]
[310964977,1704836006932,-500.0,0.00041671,30]
[310964978,1704836006941,-500.0,0.00041671,30]
[310964979,1704836006950,-1003.07,0.00041671,6]
[310964980,1704836006959,-609.07459489,0.00041671,30]
[310964981,1704836006968,-500.0,0.00041671,30]
[310964982,1704836006977,-500.0,0.00041671,30]
[310964983,1704836006986,-599.12,0.00041671,30]
[310964984,1704836006995,-500.0,0.00041671,30]
[310964985,1704836007005,-500.0,0.00041671,30]
[310964986,1704836007015,-870.95,0.00041671,30]
[310964987,1704836007024,-774.16,0.00041671,30]
[310964988,1704836007033,-500.0,0.00041671,30]
[310964989,1704836007042,-500.0,0.00041671,2]
[310964990,1704836007052,-628.44,0.00041671,30]
[310964991,1704836007061,-500.0,0.00041671,30]
[310964992,1704836007071,-500.0,0.00041671,30]
[310964993,1704836007080,-583.93,0.00041671,30]
[310964994,1704836007089,-500.0,0.00041671,30]
[310964995,1704836007098,-664.43,0.00041671,30]
[310964996,1704836007107,-642.11,0.00041671,30]
[310964997,1704836007117,-1006.44,0.00041671,30]
[310964998,1704836007126,-500.0,0.00041671,30]
[310964999,1704836007136,-785.15,0.00041671,30]
[310965000,1704836007146,-500.0,0.00041671,30]
[310965001,1704836007155,-500.0,0.00041671,30]
[310965002,1704836007164,-500.0,0.00041671,30]
[310965003,1704836007176,-500.0,0.00041671,30]
[310965004,1704836007186,-647.85,0.00041671,30]
[310965005,1704836007195,-500.0,0.00041671,30]
[310965006,1704836007206,-1176.3,0.00041671,30]
[310965007,1704836007215,-892.9,0.00041671,30]
[310965008,1704836007225,-500.0,0.00041671,30]
[310965009,1704836007235,-500.0,0.00041671,30]
[310965010,1704836007244,-325.45478368,0.00041671,30]
[310965011,1704836007253,-500.0,0.00041671,30]
[310965012,1704836007263,-875.0,0.00041671,30]
[310965013,1704836007272,-500.0,0.00041671,30]
[310965014,1704836007282,-500.0,0.00041671,30]
[310965015,1704836007291,-1021.0,0.00041671,30]
[310965016,1704836007301,-500.0,0.00041671,30]
[310965017,1704836007310,-924.33,0.00041671,30]
[310965018,1704836007322,-163.83759177,0.00041671,30]
[310965019,1704836007333,-552.38,0.00041671,30]
[310965020,1704836007342,-1079.22,0.00041671,30]
[310965021,1704836007352,-500.0,0.00041671,30]
[310965022,1704836007364,-500.0,0.00041671,30]
[310965023,1704836007374,-500.0,0.00041671,30]
[310965024,1704836007384,-500.0,0.00041671,30]
[310965025,1704836007394,-749.02,0.00041671,30]
[310965026,1704836007403,-500.0,0.00041671,30]
[310965027,1704836007416,-500.0,0.00041671,30]
[310965028,1704836007430,-500.0,0.00041671,30]
[310965029,1704836007440,-500.0,0.00041671,30]
[310965030,1704836007452,-507.33,0.00041671,30]
[310965031,1704836007462,-500.0,0.00041671,30]
[310965032,1704836007472,-500.0,0.00041671,30]
[310965033,1704836007482,-500.0,0.00041671,30]
[310965034,1704836007492,-500.0,0.00041671,30]
[310965035,1704836007501,-500.0,0.00041671,30]
[310965036,1704836007511,-556.06,0.00041671,30]
[310965037,1704836007521,-500.0,0.00041671,30]
[310965038,1704836007532,-500.0,0.00041671,30]
[310965039,1704836007544,-544.95,0.00041671,30]
[310965040,1704836007553,-215.7461745,0.00041671,30]
[310965041,1704836007563,-500.0,0.00041671,30]
[310965042,1704836007572,-889.52,0.00041671,30]
[310965043,1704836007582,-643.58,0.00041671,30]
[310965044,1704836007591,-857.15,0.00041671,30]
[310965045,1704836007600,-549.07,0.00041671,30]
[310965046,1704836007610,-500.0,0.00041671,30]
[310965047,1704836007620,-674.98,0.00041671,30]
[310965048,1704836007631,-500.0,0.00041671,30]
[310965049,1704836007640,-879.09,0.00041671,30]
[310965050,1704836007650,-500.0,0.00041671,30]
[310965051,1704836007659,-525.43,0.00041671,30]
[310965052,1704836007668,-740.92,0.00041671,30]
[310965053,1704836007680,-500.0,0.00041671,30]
[310965054,1704836007689,-500.0,0.00041671,30]
[310965055,1704836007698,-894.54,0.00041671,30]
[310965056,1704836007707,-500.0,0.00041671,30]
[310965057,1704836007716,-1210.61,0.00041671,30]
[310965058,1704836007725,-500.0,0.00041671,30]
[310965059,1704836007734,-1262.57,0.00041671,30]
[310965060,1704836007743,-500.0,0.00041671,30]
[310965061,1704836007753,-767.71,0.00041671,30]
[310965062,1704836007763,-571.45,0.00041671,30]
[310965063,1704836007772,-500.0,0.00041671,30]
[310965064,1704836007781,-500.0,0.00041671,30]
[310965065,1704836007791,-1000.0,0.00041671,30]
[310965066,1704836007801,-500.0,0.00041671,30]
[310965067,1704836007810,-1012.62,0.00041671,30]
[310965068,1704836007820,-568.08,0.00041671,30]
[310965069,1704836007829,-500.0,0.00041671,30]
[310965070,1704836007839,-1247.69,0.00041671,30]
[310965071,1704836007849,-500.0,0.00041671,30]
[310965072,1704836007858,-504.29,0.00041671,30]
[310965073,1704836007868,-744.29,0.00041671,30]
[310965074,1704836007878,-500.0,0.00041671,30]
[310965075,1704836007887,-500.0,0.00041671,30]
[310965076,1704836007896,-500.0,0.00041671,30]
[310965077,1704836007905,-1071.67,0.00041671,30]
[310965078,1704836007914,-1041.65,0.00041671,30]
[310965079,1704836007925,-597.48,0.00041671,30]
[310965080,1704836007934,-500.0,0.00041671,30]
[310965081,1704836007943,-670.96,0.00041671,30]
[310965082,1704836007953,-500.0,0.00041671,30]
[310965083,1704836007963,-992.5,0.00041671,30]
[310965084,1704836007973,-500.0,0.00041671,30]
[310965085,1704836007982,-538.45499091,0.00041671,30]
[310965086,1704836007991,-1379.24,0.00041671,30]
[310965087,1704836008001,-259.03912685,0.00041671,30]
[310965088,1704836008010,-891.81,0.00041671,30]
[310965089,1704836008019,-500.0,0.00041671,30]
[310965090,1704836008029,-3464.95,0.00041671,30]
[310965091,1704836008038,-266.99595664,0.00041671,30]
[310965092,1704836008048,-838.55,0.00041671,30]
[310965093,1704836008057,-660.81,0.00041671,30]
[310965094,1704836008066,-1525.96,0.00041671,30]
[310965095,1704836008076,-940.28,0.00041671,30]
[310965096,1704836008085,-797.09,0.00041671,30]
[310965097,1704836008095,-500.0,0.00041671,30]
[310965098,1704836008104,-500.0,0.00041671,30]
[310965099,1704836008113,-500.0,0.00041671,30]
[310965100,1704836008122,-500.0,0.00041671,30]
[310965101,1704836008131,-181.16762509,0.00041671,30]
[310965102,1704836008141,-1021.78,0.00041671,30]
[310965103,1704836008150,-500.0,0.00041671,30]
[310965104,1704836008160,-765.32,0.00041671,30]
[310965105,1704836008169,-624.2,0.00041671,30]
[310965106,1704836008179,-1106.38,0.00041671,30]
[310965107,1704836008188,-581.2,0.00041671,30]
[310965108,1704836008197,-1950.33,0.00041671,30]
[310965109,1704836008206,-206.79101783,0.00041671,30]
[310965110,1704836008216,-779.64,0.00041671,30]
[310965111,1704836008226,-500.0,0.00041671,30]
[310965112,1704836008235,-500.0,0.00041671,30]
[310965113,1704836008245,-557.57,0.00041671,30]
[310965114,1704836008255,-742.05,0.00041671,30]
[310965115,1704836008264,-578.59,0.00041671,30]
[310965116,1704836008274,-500.0,0.00041671,30]
[310965117,1704836008284,-500.0,0.00041671,30]
[310965118,1704836008293,-500.0,0.00041671,30]
[310965119,1704836008303,-718.23,0.00041671,30]
[310965120,1704836008313,-500.0,0.00041671,30]
[310965121,1704836008323,-500.0,0.00041671,30]
[310965122,1704836008332,-500.0,0.00041671,30]
[310965123,1704836008342,-500.0,0.00041671,30]
[310965124,1704836008352,-500.0,0.00041671,30]
[310965125,1704836008362,-1681.49,0.00041671,30]
[310965126,1704836008371,-667.7,0.00041671,30]
[310965127,1704836008381,-500.0,0.00041671,30]
[310965128,1704836008390,-500.0,0.00041671,30]
[310965129,1704836008400,-500.0,0.00041671,30]
[310965130,1704836008410,-803.72,0.00041671,30]
[310965131,1704836008419,-691.09,0.00041671,30]
[310965132,1704836008430,-820.84,0.00041671,30]
[310965133,1704836008440,-500.0,0.00041671,30]
[310965134,1704836008449,-500.0,0.00041671,7]
[310965135,1704836008459,-500.0,0.00041671,30]
[310965136,1704836008468,-500.0,0.00041671,30]
[310965137,1704836008477,-612.42,0.00041671,30]
[310965138,1704836008486,-500.0,0.00041671,30]
[310965139,1704836008496,-500.0,0.00041671,30]
[310965140,1704836008506,-500.0,0.00041671,30]
[310965141,1704836008516,-500.0,0.00041671,30]
[310965142,1704836008526,-700.31,0.00041671,30]
[310965143,1704836008535,-500.0,0.00041671,30]
[310965144,1704836008545,-1173.84,0.00041671,30]
[310965145,1704836008555,-890.72,0.00041671,30]
[310965146,1704836008564,-519.17,0.00041671,30]
[310965147,1704836008574,-681.49,0.00041671,30]
[310965148,1704836008583,-500.0,0.00041671,30]
[310965149,1704836008593,-627.48,0.00041671,30]
[310965150,1704836008602,-1141.38,0.00041671,30]
[310965151,1704836008612,-596.45,0.00041671,30]
[310965152,1704836008621,-1148.32,0.00041671,30]
[310965153,1704836008631,-616.05,0.00041671,30]
[310965154,1704836008641,-500.0,0.00041671,30]
[310965155,1704836008651,-1154.54,0.00041671,30]
[310965156,1704836008660,-500.0,0.00041671,30]
[310965157,1704836008670,-500.0,0.00041671,30]
[310965158,1704836008682,-622.7,0.00041671,30]
[310965159,1704836008691,-1370.57,0.00041671,30]
[310965160,1704836008701,-724.45,0.00041671,30]
[310965161,1704836008710,-609.18631605,0.00041671,30]
[310965162,1704836008719,-555.95,0.00041671,30]
[310965163,1704836008729,-500.0,0.00041671,30]
[310965164,1704836008739,-677.52,0.00041671,30]
[310965165,1704836008749,-500.0,0.00041671,30]
[310965166,1704836008759,-500.0,0.00041671,30]
[310965167,1704836008769,-500.0,0.00041671,30]
[310965168,1704836008779,-500.0,0.00041671,30]
[310965169,1704836008789,-500.0,0.00041671,30]
[310965170,1704836008799,-854.7,0.00041671,30]
[310965171,1704836008809,-1132.67,0.00041671,30]
[310965172,1704836008819,-500.0,0.00041671,30]
[310965173,1704836008829,-500.0,0.00041671,30]